[Event "FIDE World Rapid-ch Open 2018"]
[White "Zhigalko, Andrey"]
[Black "Gaifullin, Artur"]
[Site "St. Petersburg"]
[Round "11.73"]
[Annotator "ChessBase"]
[Result "1-0"]
[Date "2018.12.28"]
[WhiteElo "2545"]
[BlackElo "2448"]
[PlyCount "153"]
[TimeControl "900+10"]

1. c4 {[%emt 0:0:0]} e6 {[%emt 0:0:0]} 2. Nc3 {[%emt 0:0:0]} d5 {[%emt 0:0:0]} 3. d4 {[%emt 0:0:0]} Nf6 {[%emt 0:0:0]} 4. cxd5 {[%emt 0:0:0]} exd5 {[%emt 0:0:1]} 5. Bg5 {[%emt 0:0:0]} Be7 {[%emt 0:0:5]} 6. e3 {[%emt 0:0:0]
} 0-0 {[%emt 0:0:6]} 7. Bd3 {[%emt 0:0:2]} c6 {[%emt 0:0:8]
} 8. Qc2 {[%emt 0:0:43]} Nbd7 {[%emt 0:0:2]} 9. Nge2 {[%emt 0:0:7]} Re8 {[%emt 0:0:2]
} 10. 0-0 {[%emt 0:0:7]} Nf8 {[%emt 0:0:1]} 11. f3 {[%emt 0:0:0]} c5 {[%emt 0:2:25]} 12. Rad1 {[%emt 0:2:57]} c4 {[%emt 0:4:19]} 13. Bf5 {[%emt 0:0:3]} Be6 {[%emt 0:0:2]} 14. Nf4 {[%emt 0:3:21]} h6 {[%emt 0:0:0]} 15. Nxe6 {[%emt 0:1:20]} fxe6 {[%emt 0:2:17]} 16. Bxf6 {[%emt 0:0:0]} Bxf6 {[%emt 0:0:1]} 17. Bg4 {[%emt 0:0:14]} Qb6 {[%emt 0:1:13]} 18. f4 {[%emt 0:0:45]} Rad8 {[%emt 0:2:15]} 19. Kh1 {[%emt 0:0:2]} Qc6 {[%emt 0:0:0]} 20. a4 {[%emt 0:1:5]} a6 {[%emt 0:0:59]} 21. a5 {[%emt 0:1:3]} Qc7 {[%emt 0:0:0]} 22. f5 {[%emt 0:1:34]} e5 {[%emt 0:0:13]} 23. e4 {[%emt 0:0:0]} exd4 {[%emt 0:0:50]} 24. Nxd5 {[%emt 0:0:3]} Rxd5 {[%emt 0:0:0]} 25. exd5 {[%emt 0:0:5]} d3 {[%emt 0:0:34]} 26. Rxd3 {[%emt 0:0:12]} Qf4 {[%emt 0:0:3]
} 27. Qd1 {[%emt 0:0:46]} Qxf1+ {[%emt 0:0:2]} 28. Qxf1 {[%emt 0:0:3]
} cxd3 {[%emt 0:0:0]} 29. g3 {[%emt 0:1:19]} Re4 {[%emt 0:0:0]} 30. h3 {[%emt 0:2:15]} d2 {[%emt 0:0:35]} 31. Qd3 {[%emt 0:0:15]} Rd4 {[%emt 0:0:1]
} 32. Qb3 {[%emt 0:0:2]} Nd7 {[%emt 0:0:3]} 33. d6+ {[%emt 0:0:0]} Kh8 {[%emt 0:0:24]} 34. Bd1 {[%emt 0:0:15]} Rxd6 {[%emt 0:1:11]} 35. Qxb7 {[%emt 0:0:4]} Kh7 {[%emt 0:0:7]} 36. Kg2 {[%emt 0:0:5]} Be5 {[%emt 0:0:31]
} 37. b4 {[%emt 0:0:17]} Rd3 {[%emt 0:0:43]} 38. Qxa6 {[%emt 0:0:0]} Rxg3+ {[%emt 0:0:3]} 39. Kf1 {[%emt 0:0:7]} Nf6 {[%emt 0:0:14]} 40. Qc6 {[%emt 0:0:8]} Re3 {[%emt 0:0:16]} 41. Qc2 {[%emt 0:0:13]} Ne4 {[%emt 0:0:23]
} 42. f6 {[%emt 0:0:7]} gxf6 {[%emt 0:0:3]} 43. a6 {[%emt 0:0:0]} Bd4 {[%emt 0:0:1]} 44. a7 {[%emt 0:0:17]} Bxa7 45. Qc7+ {[%emt 0:0:0]} Kg6 {[%emt 0:0:8]} 46. Bc2 {[%emt 0:0:19]} Re1+ {[%emt 0:0:29]} 47. Kg2 {[%emt 0:0:1]} Bd4 {[%emt 0:0:5]} 48. Qd7 {[%emt 0:0:12]} d1=Q {[%emt 0:0:17]
} 49. Bxd1 {[%emt 0:0:4]} Rg1+ {[%emt 0:0:5]} 50. Kh2 {[%emt 0:0:7]
} Be3 {[%emt 0:0:34]} 51. Bc2 {[%emt 0:0:15]} f5 {[%emt 0:0:0]} 52. Bxe4 {[%emt 0:0:15]} fxe4 {[%emt 0:0:1]} 53. Qe6+ {[%emt 0:0:6]} Kg7 {[%emt 0:0:22]} 54. Qe5+ {[%emt 0:0:7]} Kf7 {[%emt 0:0:5]} 55. Qxe4 {[%emt 0:0:20]
} Re1 {[%emt 0:0:1]} 56. Kg2 {[%emt 0:0:10]} Rg1+ {[%emt 0:0:0]} 57. Kf3 {[%emt 0:0:3]} Bg5 {[%emt 0:0:7]} 58. Qd5+ {[%emt 0:0:5]} Kg6 {[%emt 0:0:8]} 59. h4 {[%emt 0:0:22]} Rf1+ {[%emt 0:0:27]} 60. Kg2 {[%emt 0:0:6]
} Rf5 {[%emt 0:0:9]} 61. Qg8+ {[%emt 0:0:15]} Kf6 {[%emt 0:0:0]} 62. Qh8+ {[%emt 0:0:6]} Ke7 {[%emt 0:0:16]} 63. hxg5 {[%emt 0:0:7]} Rxg5+ {[%emt 0:0:0]} 64. Kf3 {[%emt 0:0:3]} Rb5 {[%emt 0:0:5]} 65. Qg7+ {[%emt 0:0:12]
} Ke8 {[%emt 0:0:17]} 66. Qxh6 {[%emt 0:0:6]} Kd7 {[%emt 0:0:0]} 67. Qf4 {[%emt 0:0:13]} Kc6 {[%emt 0:0:2]} 68. Ke3 {[%emt 0:0:8]} Rb6 {[%emt 0:0:11]} 69. Kd3 {[%emt 0:0:18]} Kb5 {[%emt 0:0:11]} 70. Kc3 {[%emt 0:0:8]
} Rc6+ {[%emt 0:0:3]} 71. Kb3 {[%emt 0:0:5]} Kb6 {[%emt 0:0:0]} 72. Qe5 {[%emt 0:0:10]} Rg6 {[%emt 0:0:11]} 73. Qd4+ {[%emt 0:0:11]} Kc7 {[%emt 0:0:2]} 74. Qf4+ {[%emt 0:0:8]} Kb6 {[%emt 0:0:20]} 75. Qb8+ {[%emt 0:0:4]
} Ka6 {[%emt 0:0:3]} 76. Ka4 {[%emt 0:0:16]} Rg4 {[%emt 0:0:0]} 77. Qc8+ {[%emt 0:0:3]} 1-0

[Event "FIDE World Rapid-ch Open 2018"]
[White "Anikonov, Dmitry"]
[Black "Jones, Gawain C B"]
[Site "St. Petersburg"]
[Round "11.74"]
[Annotator "ChessBase"]
[Result "1/2-1/2"]
[Date "2018.12.28"]
[WhiteElo "2371"]
[BlackElo "2682"]
[PlyCount "110"]
[TimeControl "900+10"]

1. d4 {[%emt 0:4:22]} g6 {[%emt 0:0:12]} 2. c4 {[%emt 0:0:12]} Bg7 {[%emt 0:0:0]} 3. g3 {[%emt 0:0:14]} c5 {[%emt 0:0:17]} 4. d5 {[%emt 0:0:5]} b5 {[%emt 0:0:9]
} 5. cxb5 {[%emt 0:0:26]} a6 {[%emt 0:0:2]} 6. bxa6 {[%emt 0:0:0]} Nf6 {[%emt 0:0:15]} 7. Nc3 {[%emt 0:0:2]} 0-0 {[%emt 0:0:9]} 8. Nf3 {[%emt 0:0:22]} d6 {[%emt 0:0:31]} 9. Bg2 {[%emt 0:0:16]} Nxa6 {[%emt 0:0:0]} 10. 0-0 {[%emt 0:0:4]} Qb6 {[%emt 0:0:48]} 11. Re1 {[%emt 0:0:36]} Bd7 {[%emt 0:1:6]} 12. e4 {[%emt 0:0:5]} Ng4 {[%emt 0:0:20]} 13. h3 {[%emt 0:0:37]
} Ne5 {[%emt 0:0:2]} 14. Nxe5 {[%emt 0:0:2]} Bxe5 {[%emt 0:0:0]} 15. f4 {[%emt 0:0:7]} Bd4+ {[%emt 0:0:21]} 16. Kh2 {[%emt 0:0:2]} Nb4 {[%emt 0:0:50]} 17. Be3 {[%emt 0:1:25]} Rfb8 {[%emt 0:1:26]} 18. Qd2 {[%emt 0:0:19]
} Bxe3 {[%emt 0:0:9]} 19. Rxe3 {[%emt 0:0:2]} c4 {[%emt 0:0:0]} 20. Re2 {[%emt 0:0:41]} Ra7 {[%emt 0:1:15]} 21. e5 {[%emt 0:0:43]} Bf5 {[%emt 0:0:21]} 22. exd6 {[%emt 0:0:38]} exd6 {[%emt 0:0:30]} 23. Rae1 {[%emt 0:0:10]
} Nd3 {[%emt 0:0:43]} 24. Re8+ {[%emt 0:0:11]} Kg7 {[%emt 0:0:0]} 25. Rxb8 {[%emt 0:0:30]} Qxb8 {[%emt 0:0:2]} 26. Re2 {[%emt 0:0:3]} h5 {[%emt 0:1:18]} 27. Be4 {[%emt 0:1:2]} Rb7 {[%emt 0:2:44]} 28. b3 {[%emt 0:0:24]
} Qc8 {[%emt 0:0:27]} 29. Bxf5 {[%emt 0:1:51]} Qxf5 {[%emt 0:0:0]} 30. Ne4 {[%emt 0:0:1]} Re7 {[%emt 0:1:13]} 31. bxc4 {[%emt 0:0:19]} Rxe4 {[%emt 0:1:2]} 32. Qxd3 {[%emt 0:0:2]} Rxe2+ {[%emt 0:0:9]} 33. Qxe2 {[%emt 0:0:1]} h4 {[%emt 0:0:9]} 34. Qb2+ {[%emt 0:1:38]} Kh7 {[%emt 0:0:0]} 35. Qd2 {[%emt 0:0:13]} Qc8 {[%emt 0:0:22]} 36. Qe2 {[%emt 0:0:25]} hxg3+ {[%emt 0:0:10]} 37. Kxg3 {[%emt 0:0:24]} Qc5 {[%emt 0:0:1]} 38. Kf3 {[%emt 0:0:34]
} Qg1 {[%emt 0:0:18]} 39. Ke4 {[%emt 0:1:19]} Qh1+ {[%emt 0:0:0]} 40. Kd4 {[%emt 0:0:13]} Qg1+ {[%emt 0:0:1]} 41. Kd3 {[%emt 0:0:7]} Qb1+ {[%emt 0:0:6]} 42. Kc3 {[%emt 0:0:8]} Qc1+ {[%emt 0:0:2]} 43. Kb3 {[%emt 0:0:7]
} Qxf4 {[%emt 0:0:5]} 44. Qd3 {[%emt 0:0:18]} Qf2 {[%emt 0:0:0]} 45. a4 {[%emt 0:0:12]} Qb6+ {[%emt 0:0:2]} 46. Ka3 {[%emt 0:0:4]} f5 {[%emt 0:0:7]} 47. Qe2 {[%emt 0:0:10]} Qc7 {[%emt 0:0:21]} 48. Kb4 {[%emt 0:0:24]
} f4 {[%emt 0:0:13]} 49. a5 {[%emt 0:0:15]} Qc5+ {[%emt 0:0:0]} 50. Kb3 {[%emt 0:0:2]} Kh6 {[%emt 0:0:10]} 51. Qf3 {[%emt 0:0:7]} g5 {[%emt 0:0:8]} 52. Qe4 {[%emt 0:0:8]} Qxa5 {[%emt 0:0:34]} 53. Qe6+ {[%emt 0:0:2]
} Kh5 {[%emt 0:0:1]} 54. Qg4+ {[%emt 0:0:1]} Kh6 {[%emt 0:0:0]} 55. Qe6+ {[%emt 0:0:1]} Kh5 {[%emt 0:0:1]} 1/2-1/2

[Event "FIDE World Rapid-ch Open 2018"]
[White "Shaposhnikov, Evgeny"]
[Black "Maghsoodloo, Parham"]
[Site "St. Petersburg"]
[Round "11.75"]
[Annotator "ChessBase"]
[Result "1-0"]
[Date "2018.12.28"]
[WhiteElo "2576"]
[BlackElo "2688"]
[PlyCount "60"]
[TimeControl "900+10"]

1. Nf3 {[%emt 0:0:0]} d5 {[%emt 0:0:0]} 2. d4 {[%emt 0:0:0]} c5 {[%emt 0:0:0]} 3. c4 {[%emt 0:0:6]} cxd4 {[%emt 0:0:38]} 4. cxd5 {[%emt 0:0:7]} Nf6 {[%emt 0:0:21]} 5. Qxd4 {[%emt 0:0:25]} Qxd5 {[%emt 0:0:16]} 6. Nc3 {[%emt 0:0:4]
} Qxd4 {[%emt 0:0:7]} 7. Nxd4 {[%emt 0:0:2]} a6 {[%emt 0:0:0]} 8. Bg5 {[%emt 0:0:17]} Nbd7 {[%emt 0:0:48]} 9. e4 {[%emt 0:1:17]} e6 {[%emt 0:0:27]
} 10. f3 {[%emt 0:1:13]} Bc5 {[%emt 0:1:27]} 11. 0-0-0 {[%emt 0:0:28]
} b5 {[%emt 0:0:4]} 12. Nc6 {[%emt 0:0:10]} h6 {[%emt 0:2:39]
} 13. Bf4 {[%emt 0:0:4]} Bb6 {[%emt 0:2:29]} 14. a4 {[%emt 0:0:10]} g5 {[%emt 0:3:8]
} 15. Bd6 {[%emt 0:0:20]} bxa4 {[%emt 0:0:48]} 16. Nxa4 {[%emt 0:0:2]
} Be3+ {[%emt 0:0:9]} 17. Kb1 {[%emt 0:0:2]} a5 {[%emt 0:0:0]} 18. Rd3 {[%emt 0:2:48]} Bf2 {[%emt 0:1:31]} 19. Rb3 {[%emt 0:0:56]} g4 {[%emt 0:0:28]} 20. Bb5 {[%emt 0:0:19]} gxf3 {[%emt 0:0:42]} 21. gxf3 {[%emt 0:0:15]
} Ba6 {[%emt 0:0:17]} 22. Rf1 {[%emt 0:1:5]} Bxb5 {[%emt 0:0:0]} 23. Rxb5 {[%emt 0:0:2]} Ra6 {[%emt 0:0:1]} 24. Rxf2 {[%emt 0:0:24]} Rxc6 {[%emt 0:0:2]} 25. Rd2 {[%emt 0:0:54]} Nd5 {[%emt 0:0:41]} 26. Ba3 {[%emt 0:1:51]
} Nc7 {[%emt 0:0:32]} 27. Rxa5 {[%emt 0:0:11]} Rg8 {[%emt 0:0:0]} 28. Ra7 {[%emt 0:1:32]} Rg5 {[%emt 0:0:18]} 29. Bd6 {[%emt 0:0:20]} Kd8 {[%emt 0:0:8]} 30. Nb6 {[%emt 0:0:39]} Rb5 {[%emt 0:0:26]} 1-0

[Event "FIDE World Rapid-ch Open 2018"]
[White "Huzman, Alexander"]
[Black "Sanikidze, Tornike"]
[Site "St. Petersburg"]
[Round "11.76"]
[Annotator "ChessBase"]
[Result "1-0"]
[Date "2018.12.28"]
[WhiteElo "2580"]
[BlackElo "2507"]
[PlyCount "95"]
[TimeControl "900+10"]

1. d4 {[%emt 0:0:0]} d6 {[%emt 0:0:0]} 2. Nf3 {[%emt 0:0:1]} g6 {[%emt 0:0:0]} 3. c4 {[%emt 0:0:14]} Bg7 {[%emt 0:0:4]} 4. e4 {[%emt 0:0:16]} e5 {[%emt 0:0:9]
} 5. Be2 {[%emt 0:1:20]} exd4 {[%emt 0:0:11]} 6. Nxd4 {[%emt 0:0:0]} Ne7 {[%emt 0:0:5]} 7. h4 {[%emt 0:0:28]} Nbc6 {[%emt 0:0:8]} 8. Be3 {[%emt 0:0:1]} f5 {[%emt 0:0:40]} 9. Nc3 {[%emt 0:0:55]} 0-0 {[%emt 0:0:0]} 10. Qd2 {[%emt 0:0:2]} fxe4 {[%emt 0:6:17]} 11. Nxe4 {[%emt 0:0:40]
} Nf5 {[%emt 0:0:21]} 12. Nxf5 {[%emt 0:0:15]} gxf5 {[%emt 0:1:3]} 13. Nc3 {[%emt 0:0:1]} Qf6 {[%emt 0:0:9]} 14. Bg5 {[%emt 0:1:27]} Qf7 {[%emt 0:0:0]} 15. Bh6 {[%emt 0:1:5]} Bxh6 {[%emt 0:0:40]} 16. Qxh6 {[%emt 0:0:2]} Nd4 {[%emt 0:0:2]} 17. Bd3 {[%emt 0:1:21]} Re8+ {[%emt 0:1:27]} 18. Kd2 {[%emt 0:0:4]
} Be6 {[%emt 0:0:5]} 19. b3 {[%emt 0:1:9]} c5 {[%emt 0:0:32]
} 20. Rhe1 {[%emt 0:2:26]} Kh8 {[%emt 0:0:19]} 21. Re3 {[%emt 0:1:4]} Rg8 {[%emt 0:2:52]
} 22. g3 {[%emt 0:0:9]} Rad8 {[%emt 0:0:21]} 23. h5 {[%emt 0:0:0]} b5 {[%emt 0:0:54]} 24. Rae1 {[%emt 0:0:14]} bxc4 {[%emt 0:0:15]} 25. bxc4 {[%emt 0:0:1]} Rge8 {[%emt 0:0:9]} 26. Nb5 {[%emt 0:1:18]} Nxb5 {[%emt 0:0:11]
} 27. Rxe6 {[%emt 0:0:1]} Rxe6 {[%emt 0:0:10]} 28. Rxe6 {[%emt 0:0:1]
} Nd4 {[%emt 0:0:6]} 29. Rxd6 {[%emt 0:0:3]} Nf3+ {[%emt 0:0:0]} 30. Kc3 {[%emt 0:0:28]} Rxd6 {[%emt 0:0:8]} 31. Qxd6 {[%emt 0:0:2]
} Qg7+ {[%emt 0:0:1]} 32. Kc2 {[%emt 0:0:34]} Nd4+ {[%emt 0:0:22]} 33. Kc1 {[%emt 0:0:57]} Qg5+ {[%emt 0:0:1]} 34. Kb1 {[%emt 0:0:3]} Kg7 {[%emt 0:0:0]} 35. Qxc5 {[%emt 0:0:3]} Qf6 {[%emt 0:0:3]} 36. Qxa7+ {[%emt 0:0:0]} Kh6 {[%emt 0:0:1]} 37. c5 {[%emt 0:0:9]} Qe5 {[%emt 0:0:6]} 38. Qa5 {[%emt 0:0:24]} Kxh5 {[%emt 0:0:28]} 39. Qc3 {[%emt 0:0:0]} Qb8+ {[%emt 0:0:0]} 40. Kc1 {[%emt 0:0:12]} Qe5 {[%emt 0:0:1]} 41. c6 {[%emt 0:1:14]} Kg6 {[%emt 0:0:15]} 42. Kd1 {[%emt 0:0:5]} Qd5 {[%emt 0:0:14]} 43. c7 {[%emt 0:0:15]
} Qf3+ {[%emt 0:0:8]} 44. Ke1 {[%emt 0:0:7]} Qh1+ {[%emt 0:0:0]} 45. Kd2 {[%emt 0:0:1]} Nf3+ {[%emt 0:0:9]} 46. Ke3 {[%emt 0:0:31]} Ng1 {[%emt 0:0:11]} 47. Bxf5+ {[%emt 0:0:6]} Kh5 {[%emt 0:0:10]} 48. Be4 {[%emt 0:0:9]
} 1-0

[Event "FIDE World Rapid-ch Open 2018"]
[White "Usmanov, Vasily"]
[Black "Zablotsky, Sergei"]
[Site "St. Petersburg"]
[Round "11.77"]
[Annotator "ChessBase"]
[Result "1-0"]
[Date "2018.12.28"]
[WhiteElo "2450"]
[BlackElo "2511"]
[PlyCount "107"]
[TimeControl "900+10"]

1. b3 {[%emt 0:0:0]} c5 {[%emt 0:0:53]} 2. Bb2 {[%emt 0:0:0]} Nc6 {[%emt 0:0:2]
} 3. Nf3 {[%emt 0:0:3]} d5 {[%emt 0:0:7]} 4. e3 {[%emt 0:0:0]} Nf6 {[%emt 0:0:14]} 5. Bb5 {[%emt 0:0:4]} Bd7 {[%emt 0:0:11]} 6. 0-0 {[%emt 0:0:42]
} a6 {[%emt 0:0:4]} 7. Bxc6 {[%emt 0:0:3]} Bxc6 {[%emt 0:0:0]} 8. Ne5 {[%emt 0:0:2]} Rc8 {[%emt 0:0:5]} 9. c4 {[%emt 0:0:36]} e6 {[%emt 0:0:28]
} 10. Nxc6 {[%emt 0:0:52]} Rxc6 {[%emt 0:0:3]} 11. cxd5 {[%emt 0:0:2]
} exd5 {[%emt 0:0:12]} 12. d4 {[%emt 0:0:22]} cxd4 {[%emt 0:0:0]} 13. Bxd4 {[%emt 0:0:30]} Bc5 {[%emt 0:0:3]} 14. Nc3 {[%emt 0:0:19]} Bxd4 {[%emt 0:4:10]} 15. Qxd4 {[%emt 0:0:2]} 0-0 {[%emt 0:1:5]} 16. Rfd1 {[%emt 0:0:3]
} Qc7 {[%emt 0:1:5]} 17. Nxd5 {[%emt 0:0:15]} Nxd5 {[%emt 0:0:0]} 18. Qxd5 {[%emt 0:0:2]} g6 {[%emt 0:0:14]} 19. g3 {[%emt 0:0:31]} Rc2 {[%emt 0:0:14]} 20. Rd2 {[%emt 0:1:48]} Rxd2 {[%emt 0:0:8]} 21. Qxd2 {[%emt 0:0:3]
} Rd8 {[%emt 0:0:1]} 22. Qe2 {[%emt 0:0:15]} Qa5 {[%emt 0:0:0]} 23. Rc1 {[%emt 0:1:18]} Qd2 {[%emt 0:0:42]} 24. Rc2 {[%emt 0:0:28]} Qxe2 {[%emt 0:0:31]} 25. Rxe2 {[%emt 0:0:1]} Rd1+ {[%emt 0:0:2]} 26. Kg2 {[%emt 0:0:2]
} Kf8 {[%emt 0:0:6]} 27. Rc2 {[%emt 0:0:1]} h5 {[%emt 0:0:0]} 28. h4 {[%emt 0:0:4]} Ra1 {[%emt 0:0:8]} 29. Kf3 {[%emt 0:0:4]} Ke7 {[%emt 0:0:2]} 30. Kf4 {[%emt 0:2:16]} Ke6 {[%emt 0:0:54]} 31. Kg5 {[%emt 0:0:39]
} a5 {[%emt 0:0:20]} 32. a4 {[%emt 0:0:24]} Rb1 {[%emt 0:0:23]
} 33. Rc3 {[%emt 0:0:3]} Rf1 {[%emt 0:0:11]} 34. Rc2 {[%emt 0:0:32]} Rb1 {[%emt 0:0:1]
} 35. Rc5 {[%emt 0:0:46]} Rxb3 {[%emt 0:0:18]} 36. Rxa5 {[%emt 0:0:1]
} Rb2 {[%emt 0:0:20]} 37. f3 {[%emt 0:0:17]} Rf2 {[%emt 0:0:0]} 38. Kf4 {[%emt 0:0:14]} Ra2 {[%emt 0:0:3]} 39. Kg5 {[%emt 0:1:55]} Rf2 {[%emt 0:0:13]} 40. f4 {[%emt 0:0:8]} Rf3 {[%emt 0:0:7]} 41. Re5+ {[%emt 0:0:2]
} Kd6 {[%emt 0:0:16]} 42. Kf6 {[%emt 0:0:1]} Rxg3 {[%emt 0:0:0]} 43. Kxf7 {[%emt 0:0:1]} Rg4 {[%emt 0:0:3]} 44. Rg5 {[%emt 0:0:58]} Rxh4 {[%emt 0:0:5]} 45. Kxg6 {[%emt 0:0:5]} Rh3 {[%emt 0:0:7]} 46. e4 {[%emt 0:0:2]
} h4 {[%emt 0:0:11]} 47. Rd5+ {[%emt 0:1:5]} Kc6 {[%emt 0:0:0]} 48. Rd1 {[%emt 0:0:13]} Re3 {[%emt 0:0:46]} 49. e5 {[%emt 0:0:47]} h3 {[%emt 0:0:1]
} 50. Kf6 {[%emt 0:1:35]} h2 {[%emt 0:0:5]} 51. e6 {[%emt 0:0:0]} Rh3 {[%emt 0:0:33]} 52. e7 {[%emt 0:0:23]} Rh8 {[%emt 0:0:4]} 53. f5 {[%emt 0:0:13]} Kc7 {[%emt 0:0:23]} 54. Kg7 {[%emt 0:0:26]} 1-0

[Event "FIDE World Rapid-ch Open 2018"]
[White "Christiansen, Johan-Sebastian"]
[Black "Anisimov, Pavel"]
[Site "St. Petersburg"]
[Round "11.78"]
[Annotator "ChessBase"]
[Result "1/2-1/2"]
[Date "2018.12.28"]
[WhiteElo "2555"]
[BlackElo "2533"]
[PlyCount "120"]
[TimeControl "900+10"]

1. e4 {[%emt 0:0:0]} c5 {[%emt 0:0:0]} 2. Nf3 {[%emt 0:0:3]} d6 {[%emt 0:0:0]} 3. Bb5+ {[%emt 0:0:11]} Nd7 {[%emt 0:0:0]} 4. 0-0 {[%emt 0:0:9]} Ngf6 {[%emt 0:0:3]} 5. Re1 {[%emt 0:0:4]} a6 {[%emt 0:0:11]} 6. Bf1 {[%emt 0:0:2]
} e5 {[%emt 0:0:33]} 7. c3 {[%emt 0:0:12]} Be7 {[%emt 0:1:26]} 8. d4 {[%emt 0:0:2]} b5 {[%emt 0:0:10]} 9. a4 {[%emt 0:0:22]} Rb8 {[%emt 0:0:0]} 10. axb5 {[%emt 0:0:2]} axb5 {[%emt 0:0:1]} 11. Na3 {[%emt 0:0:9]
} b4 {[%emt 0:2:21]} 12. Nc4 {[%emt 0:0:3]} Qc7 {[%emt 0:0:7]} 13. Bg5 {[%emt 0:3:12]
} 0-0 {[%emt 0:1:8]} 14. Bh4 {[%emt 0:2:48]} Re8 {[%emt 0:0:0]} 15. dxe5 {[%emt 0:1:56]} dxe5 {[%emt 0:0:14]} 16. Nfxe5 {[%emt 0:0:49]} Nxe5 {[%emt 0:0:55]} 17. Nxe5 {[%emt 0:0:2]} bxc3 {[%emt 0:0:18]} 18. bxc3 Bd6 {[%emt 0:2:56]} 19. Bxf6 {[%emt 0:1:27]} Bxe5 {[%emt 0:0:8]} 20. Bxe5 {[%emt 0:0:1]
} Qxe5 {[%emt 0:0:0]} 21. Qd2 {[%emt 0:0:50]} Be6 {[%emt 0:0:0]} 22. Rad1 {[%emt 0:0:57]} f6 {[%emt 0:0:12]} 23. h3 {[%emt 0:0:49]} Rb3 {[%emt 0:0:11]} 24. Re3 {[%emt 0:0:6]} Reb8 {[%emt 0:0:15]} 25. Qd6 {[%emt 0:0:47]
} Qxd6 {[%emt 0:0:38]} 26. Rxd6 {[%emt 0:0:2]} Kf7 {[%emt 0:0:0]} 27. Kh2 {[%emt 0:0:1]} R3b6 {[%emt 0:0:11]} 28. Rd2 {[%emt 0:2:10]} Rb2 {[%emt 0:0:3]} 29. Red3 {[%emt 0:0:46]} R8b3 {[%emt 0:0:16]} 30. Rxb2 {[%emt 0:0:46]
} Rxb2 {[%emt 0:0:1]} 31. Rf3 {[%emt 0:0:2]} Ke7 {[%emt 0:0:0]} 32. Kg3 {[%emt 0:0:0]} g5 {[%emt 0:0:26]} 33. h4 {[%emt 0:0:16]} h6 {[%emt 0:0:2]
} 34. hxg5 {[%emt 0:0:2]} hxg5 {[%emt 0:0:2]} 35. Re3 {[%emt 0:0:7]
} Kd6 {[%emt 0:0:16]} 36. f4 {[%emt 0:0:59]} gxf4+ {[%emt 0:0:0]} 37. Kxf4 {[%emt 0:0:1]} Rf2+ {[%emt 0:0:2]} 38. Rf3 {[%emt 0:0:0]} Rc2 {[%emt 0:0:11]} 39. Rd3+ {[%emt 0:0:31]} Ke7 {[%emt 0:0:1]} 40. Re3 {[%emt 0:0:9]
} Kd6 {[%emt 0:0:15]} 41. Be2 {[%emt 0:0:5]} Rc1 {[%emt 0:0:0]} 42. Bf3 {[%emt 0:0:12]} c4 {[%emt 0:0:35]} 43. g4 {[%emt 0:0:19]} Rc2 {[%emt 0:0:7]
} 44. Be2 {[%emt 0:0:6]} Rc1 {[%emt 0:0:7]} 45. Rg3 {[%emt 0:0:0]} Rc2 {[%emt 0:0:4]} 46. Re3 {[%emt 0:0:2]} Rc1 {[%emt 0:0:1]} 47. Bf3 {[%emt 0:0:5]} Rc2 {[%emt 0:0:4]} 48. Bd1 {[%emt 0:0:18]} Rc1 {[%emt 0:0:6]
} 49. Be2 {[%emt 0:0:1]} Rc2 {[%emt 0:0:3]} 50. Bf3 {[%emt 0:0:0]} Rc1 {[%emt 0:0:1]} 51. Bg2 {[%emt 0:0:9]} Rc2 {[%emt 0:0:19]} 52. Rg3 {[%emt 0:0:12]} Rf2+ {[%emt 0:0:29]} 53. Bf3 {[%emt 0:0:16]} Rc2 {[%emt 0:0:5]
} 54. Bh1 {[%emt 0:0:13]} Rf2+ {[%emt 0:0:14]} 55. Bf3 {[%emt 0:0:10]
} Rc2 {[%emt 0:0:34]} 56. Bd1 {[%emt 0:0:1]} Rd2 {[%emt 0:0:0]} 57. Bf3 {[%emt 0:0:4]} Rc2 {[%emt 0:0:3]} 58. Bg2 {[%emt 0:0:17]} Rf2+ {[%emt 0:0:4]} 59. Bf3 {[%emt 0:0:8]} Rc2 {[%emt 0:0:1]} 60. Bd1 {[%emt 0:0:12]
} Rd2 {[%emt 0:0:2]} 1/2-1/2

[Event "FIDE World Rapid-ch Open 2018"]
[White "Belozerov, Andrei"]
[Black "Kabanov, Nikolai"]
[Site "St. Petersburg"]
[Round "11.79"]
[Annotator "ChessBase"]
[Result "0-1"]
[Date "2018.12.28"]
[WhiteElo "2528"]
[BlackElo "2450"]
[PlyCount "82"]
[TimeControl "900+10"]

1. d4 {[%emt 0:0:0]} Nf6 {[%emt 0:0:0]} 2. c4 {[%emt 0:0:0]} c5 {[%emt 0:0:0]} 3. Nf3 {[%emt 0:0:7]} cxd4 {[%emt 0:0:14]} 4. Nxd4 {[%emt 0:0:1]} e6 {[%emt 0:0:26]} 5. g3 {[%emt 0:0:8]} Bb4+ {[%emt 0:0:15]} 6. Bd2 {[%emt 0:0:27]
} Qb6 {[%emt 0:0:47]} 7. e3 {[%emt 0:0:16]} Nc6 {[%emt 0:4:14]
} 8. Bg2 {[%emt 0:0:21]} d5 {[%emt 0:0:23]} 9. 0-0 {[%emt 0:1:48]} Nxd4 {[%emt 0:0:40]
} 10. exd4 {[%emt 0:0:40]} Bxd2 {[%emt 0:0:9]} 11. Qxd2 {[%emt 0:0:6]
} 0-0 {[%emt 0:2:15]} 12. c5 {[%emt 0:0:13]} Qc7 {[%emt 0:0:0]} 13. Nc3 {[%emt 0:0:3]} Bd7 {[%emt 0:0:6]} 14. b4 {[%emt 0:0:5]} b6 {[%emt 0:0:33]
} 15. Rfc1 {[%emt 0:0:38]} a5 {[%emt 0:2:30]} 16. a3 {[%emt 0:0:0]} Ra7 {[%emt 0:0:53]} 17. Rab1 {[%emt 0:1:40]} axb4 {[%emt 0:0:19]} 18. axb4 {[%emt 0:0:2]} b5 {[%emt 0:0:47]} 19. Ra1 {[%emt 0:1:18]} Bc6 {[%emt 0:0:24]
} 20. Qe2 {[%emt 0:1:10]} Rb8 {[%emt 0:0:7]} 21. Qe5 {[%emt 0:0:0]} Qb7 {[%emt 0:1:7]} 22. Rxa7 {[%emt 0:1:27]} Qxa7 {[%emt 0:0:2]} 23. Bf1 {[%emt 0:0:5]} Ne4 {[%emt 0:0:24]} 24. Ra1 {[%emt 0:0:51]} Qb7 {[%emt 0:0:1]
} 25. Ra6 {[%emt 0:1:37]} Ra8 {[%emt 0:0:47]} 26. Nxe4 {[%emt 0:1:45]
} Qxa6 {[%emt 0:0:17]} 27. Nd6 {[%emt 0:0:8]} Qa1 {[%emt 0:0:0]} 28. Nxf7 {[%emt 0:0:34]} Kxf7 {[%emt 0:0:30]} 29. Qc7+ {[%emt 0:0:2]} Kf6 {[%emt 0:0:10]} 30. Qxc6 {[%emt 0:0:9]} Ra2 {[%emt 0:0:5]} 31. Qxb5 {[%emt 0:1:23]
} Qxd4 {[%emt 0:0:10]} 32. Be2 {[%emt 0:0:1]} Rb2 {[%emt 0:0:0]} 33. c6 {[%emt 0:0:3]} Qxb4 {[%emt 0:0:26]} 34. Qxb4 {[%emt 0:1:48]} Rxb4 {[%emt 0:0:2]} 35. Ba6 {[%emt 0:0:11]} Rb1+ {[%emt 0:0:9]} 36. Kg2 {[%emt 0:0:0]
} Rc1 {[%emt 0:0:1]} 37. Bb7 {[%emt 0:0:2]} Ke7 {[%emt 0:0:0]} 38. h4 {[%emt 0:0:8]} Kd6 {[%emt 0:0:2]} 39. f4 {[%emt 0:0:1]} h5 {[%emt 0:0:22]
} 40. g4 {[%emt 0:0:3]} hxg4 {[%emt 0:0:4]} 41. Kg3 {[%emt 0:0:0]} d4 {[%emt 0:0:5]} 0-1

[Event "FIDE World Rapid-ch Open 2018"]
[White "Nozdrachev, Vladislav"]
[Black "Borisenko, Viacheslav"]
[Site "St. Petersburg"]
[Round "11.80"]
[Annotator "ChessBase"]
[Result "1-0"]
[Date "2018.12.28"]
[WhiteElo "2486"]
[BlackElo "2289"]
[PlyCount "73"]
[TimeControl "900+10"]

1. e4 {[%emt 0:0:0]} g6 {[%emt 0:0:0]} 2. d4 {[%emt 0:0:3]} Bg7 {[%emt 0:0:0]} 3. Nc3 {[%emt 0:0:7]} c6 {[%emt 0:0:2]} 4. Nf3 {[%emt 0:0:46]} d5 {[%emt 0:0:2]} 5. h3 {[%emt 0:0:6]} Nf6 {[%emt 0:0:20]} 6. e5 {[%emt 0:0:0]} Ne4 {[%emt 0:0:6]} 7. Bd3 {[%emt 0:0:5]} Nxc3 {[%emt 0:0:6]} 8. bxc3 {[%emt 0:0:1]} c5 {[%emt 0:0:36]} 9. 0-0 {[%emt 0:0:50]} c4 {[%emt 0:0:2]
} 10. Be2 {[%emt 0:0:2]} Qa5 {[%emt 0:0:30]} 11. Bd2 {[%emt 0:0:38]} Qa4 {[%emt 0:0:12]
} 12. Nh4 {[%emt 0:0:15]} Nc6 {[%emt 0:0:26]} 13. f4 {[%emt 0:0:0]} e6 {[%emt 0:0:2]} 14. g4 {[%emt 0:0:19]} Ne7 {[%emt 0:0:14]} 15. Kh2 {[%emt 0:1:47]} Bd7 {[%emt 0:0:14]} 16. Be1 {[%emt 0:3:41]} 0-0-0 {[%emt 0:0:32]
} 17. Nf3 {[%emt 0:0:2]} h5 {[%emt 0:0:38]} 18. Ng5 {[%emt 0:0:0]} hxg4 {[%emt 0:0:10]} 19. Nxf7 {[%emt 0:0:14]} Rxh3+ {[%emt 0:0:5]} 20. Kg1 {[%emt 0:0:1]} Rg8 {[%emt 0:3:38]} 21. Bxg4 {[%emt 0:0:8]} Rh5 {[%emt 0:0:12]
} 22. Bxh5 {[%emt 0:0:50]} gxh5 {[%emt 0:0:2]} 23. Kh1 {[%emt 0:1:28]
} Nf5 {[%emt 0:1:3]} 24. Rg1 {[%emt 0:0:2]} Rf8 {[%emt 0:0:0]} 25. Nd6+ {[%emt 0:0:25]} Nxd6 {[%emt 0:0:3]} 26. exd6 {[%emt 0:0:31]} Bh6 {[%emt 0:0:13]} 27. Bg3 {[%emt 0:0:40]} Be8 {[%emt 0:0:25]} 28. Qe2 {[%emt 0:0:21]
} Qd7 {[%emt 0:0:15]} 29. Rae1 {[%emt 0:0:1]} Rf6 {[%emt 0:0:0]} 30. Qe5 {[%emt 0:0:35]} Bg7 {[%emt 0:1:58]} 31. f5 {[%emt 0:1:2]} Bf7 {[%emt 0:2:29]} 32. Bh4 {[%emt 0:0:16]} Rg6 {[%emt 0:0:35]} 33. Qf4 {[%emt 0:0:45]
} Rxg1+ {[%emt 0:0:42]} 34. Kxg1 {[%emt 0:0:3]} Qe8 {[%emt 0:0:0]} 35. fxe6 {[%emt 0:0:24]} Bxe6 {[%emt 0:0:3]} 36. Qg5 {[%emt 0:0:2]
} Bf8 {[%emt 0:0:7]} 37. Rxe6 {[%emt 0:0:3]} 1-0